fUSD/lending_fUSD_20250204
["ID","MTS","AMOUNT","RATE_DAILY","PERIOD"]
[351622744,1738667477063,-947.87,9.171e-05,2]
[351622745,1738667477073,-947.87,9.308e-05,2]
[351622746,1738667477083,-947.87,9.445e-05,2]
[351622747,1738667477093,-52882.06326265,0.0001,2]
[351622748,1738667477105,-1612.70666405,0.0001,2]
[351622749,1738667477116,-939.95000075,0.0001,2]
[351622750,1738667477128,-1736.72172685,0.0001,2]
[351622751,1738667477140,-433.97561987,0.0001,2]
[351622752,1738667477152,-1584.28479993,0.0001,2]
[351622753,1738667477163,-697.87832726,0.0001,2]
[351622754,1738667477174,-1023.83795685,0.0001,2]
[351622755,1738667477205,-2783.2,0.0001,2]
[351622756,1738667477233,-947.87,9.582e-05,2]
[351622757,1738667477242,-34942.52999939,0.0001,2]
[351622758,1738667477255,-588.94,0.0001,2]
[351622759,1738667477279,-12.0811148,0.0001,2]
[351622760,1738667477291,-10801.40952678,0.0001,2]
[351622761,1738667477312,-511.0,9.719e-05,2]
[351622762,1738667477477,-436.87,9.719e-05,2]
[351622763,1738667477489,-947.87,9.856e-05,2]
[351622764,1738667477498,-629.78,0.0001,2]
[351622766,1738667725780,5023.03,0.00018,60]
[351622799,1738668632009,-2079.0,8.219e-05,2]
[351622800,1738668632019,-150.0,8.223e-05,2]
[351622801,1738668632029,-250.0,8.226e-05,2]
[351622802,1738668632039,-1000.0,8.282e-05,2]
[351622803,1738668632049,-150.0,8.287e-05,2]
[351622804,1738668632058,-1121.09,8.337e-05,2]
[351622805,1738668632069,-166.74,8.369e-05,2]
[351622806,1738668632079,-814.887844,8.696e-05,2]
[351622807,1738668632088,-373.17219491,8.74e-05,2]
[351622808,1738668632170,-126.82780509,8.74e-05,2]
[351622809,1738668632180,-8654.50467083,8.744e-05,2]
[351622810,1738668632318,-3617.87032918,8.744e-05,2]
[351622811,1738668632328,-6368.78163732,8.762e-05,2]
[351622812,1738668632341,-5903.59336269,8.762e-05,2]
[351622813,1738668632352,-500.0,8.767e-05,2]
[351622814,1738668632363,-12272.37500001,8.768e-05,2]
[351622815,1738668632373,-12272.37500001,8.771e-05,2]
[351622816,1738668632383,-300.0,8.796e-05,2]
[351622817,1738668632393,-3949.9256,8.797e-05,2]
[351622818,1738668632403,-31277.24142475,8.8e-05,2]
[351622819,1738668632415,-150.0,8.896e-05,2]
[351622820,1738668632426,-500.0,8.897e-05,2]
[351622821,1738668632436,-500.0,8.897e-05,2]
[351622822,1738668632446,-500.0,8.897e-05,2]
[351622823,1738668632456,-500.0,8.897e-05,2]
[351622824,1738668632465,-500.0,8.897e-05,2]
[351622825,1738668632475,-500.0,8.897e-05,2]
[351622826,1738668632485,-500.0,8.897e-05,2]
[351622827,1738668632498,-500.0,8.897e-05,2]
[351622828,1738668632508,-500.0,8.897e-05,2]
[351622829,1738668632520,-500.0,8.897e-05,2]
[351622830,1738668632529,-500.0,8.897e-05,2]
[351622831,1738668632539,-500.0,8.897e-05,2]
[351622832,1738668632548,-500.0,8.897e-05,2]
[351622833,1738668632557,-500.0,8.897e-05,2]
[351622834,1738668632567,-500.0,8.897e-05,2]
[351622835,1738668632576,-500.0,8.897e-05,2]
[351622836,1738668632585,-500.0,8.897e-05,2]
[351622837,1738668632595,-500.0,8.897e-05,2]
[351622838,1738668632604,-500.0,8.897e-05,2]
[351622839,1738668632613,-500.0,8.897e-05,2]
[351622840,1738668632623,-500.0,8.897e-05,2]
[351622841,1738668632632,-500.0,8.897e-05,2]
[351622842,1738668632641,-500.0,8.897e-05,2]
[351622843,1738668632651,-500.0,8.897e-05,2]
[351622844,1738668632660,-500.0,8.897e-05,2]
[351622845,1738668632672,-500.0,8.897e-05,2]
[351622846,1738668632681,-500.0,8.897e-05,2]
[351622847,1738668632690,-1036.12,8.897e-05,2]
[351622848,1738668632700,-646.32,8.897e-05,2]
[351622849,1738668632710,-500.0,8.897e-05,2]
[351622850,1738668632719,-500.0,8.897e-05,2]
[351622851,1738668632728,-680.94,8.897e-05,2]
[351622852,1738668632737,-500.0,8.897e-05,2]
[351622853,1738668632747,-500.0,8.897e-05,2]
[351622854,1738668632756,-500.0,8.897e-05,2]
[351622855,1738668632766,-592.48,8.897e-05,2]
[351622856,1738668632775,-500.0,8.897e-05,2]
[351622857,1738668632784,-500.0,8.897e-05,2]
[351622858,1738668632793,-500.0,8.897e-05,2]
[351622859,1738668632803,-500.0,8.897e-05,2]
[351622860,1738668632812,-500.0,8.897e-05,2]
[351622861,1738668632822,-500.0,8.897e-05,2]
[351622862,1738668632831,-500.0,8.897e-05,2]
[351622863,1738668632841,-500.0,8.897e-05,2]
[351622864,1738668632850,-500.0,8.897e-05,2]
[351622865,1738668632859,-500.0,8.897e-05,2]
[351622866,1738668632869,-500.0,8.897e-05,2]
[351622867,1738668632878,-511.56,8.897e-05,2]
[351622868,1738668632888,-500.0,8.897e-05,2]
[351622869,1738668632897,-709.22,8.897e-05,2]
[351622870,1738668632906,-500.0,8.897e-05,2]
[351622871,1738668632917,-500.0,8.897e-05,2]
[351622872,1738668632927,-500.0,8.897e-05,2]
[351622873,1738668632936,-500.0,8.897e-05,2]
[351622874,1738668632945,-500.0,8.897e-05,2]
[351622875,1738668632956,-500.0,8.897e-05,2]
[351622876,1738668632968,-500.0,8.897e-05,2]
[351622877,1738668632977,-500.0,8.897e-05,2]
[351622878,1738668632986,-500.0,8.897e-05,2]
[351622879,1738668632996,-500.0,8.897e-05,2]
[351622880,1738668633007,-500.0,8.897e-05,2]
[351622881,1738668633017,-588.28,8.898e-05,2]
[351622882,1738668633027,-500.0,8.898e-05,2]
[351622883,1738668633039,-545.35,8.898e-05,2]
[351622884,1738668633050,-500.0,8.898e-05,2]
[351622885,1738668633060,-500.0,8.898e-05,2]
[351622886,1738668633070,-500.0,8.898e-05,2]
[351622887,1738668633080,-500.0,8.898e-05,2]
[351622888,1738668633090,-627.53,8.898e-05,2]
[351622889,1738668633099,-500.0,8.898e-05,2]
[351622890,1738668633109,-500.0,8.898e-05,2]
[351622891,1738668633119,-558.46,8.898e-05,2]
[351622892,1738668633128,-500.0,8.898e-05,2]
[351622893,1738668633138,-500.0,8.898e-05,2]
[351622894,1738668633148,-588.34,8.898e-05,2]
[351622895,1738668633157,-635.9,8.898e-05,2]
[351622896,1738668633169,-500.0,8.898e-05,2]
[351622897,1738668633179,-500.0,8.898e-05,2]
[351622898,1738668633189,-500.0,8.898e-05,2]
[351622899,1738668633199,-614.13,8.898e-05,2]
[351622900,1738668633208,-500.0,8.898e-05,2]
[351622901,1738668633218,-500.0,8.898e-05,2]
[351622902,1738668633228,-500.0,8.898e-05,2]
[351622903,1738668633238,-889.86185019,8.936e-05,2]
[351622904,1738668633247,-500.0,9.033e-05,2]
[351622905,1738668633257,-500.0,9.033e-05,2]
[351622906,1738668633267,-500.0,9.033e-05,2]
[351622907,1738668633276,-500.0,9.033e-05,2]
[351622908,1738668633286,-500.0,9.033e-05,2]
[351622909,1738668633562,-500.0,9.033e-05,2]
[351622910,1738668633572,-500.0,9.033e-05,2]
[351622911,1738668633582,-500.0,9.033e-05,2]
[351622912,1738668633592,-500.0,9.033e-05,2]
[351622913,1738668633601,-500.0,9.033e-05,2]
[351622914,1738668633611,-500.0,9.033e-05,2]
[351622915,1738668633622,-500.0,9.033e-05,2]
[351622916,1738668633632,-500.0,9.033e-05,2]
[351622917,1738668633641,-500.0,9.033e-05,2]
[351622918,1738668633651,-500.0,9.033e-05,2]
[351622919,1738668633660,-500.0,9.033e-05,2]
[351622920,1738668633671,-500.0,9.033e-05,2]
[351622921,1738668633680,-500.0,9.033e-05,2]
[351622922,1738668633689,-156.489646,9.033e-05,2]
[351622923,1738668633699,-500.0,9.033e-05,2]
[351622924,1738668633708,-500.0,9.033e-05,2]
[351622925,1738668633718,-528.69,9.033e-05,2]
[351622926,1738668633728,-500.0,9.033e-05,2]
[351622927,1738668633737,-419.163753,9.033e-05,2]
[351622928,1738668633747,-500.0,9.033e-05,2]
[351622929,1738668633756,-500.0,9.033e-05,2]
[351622930,1738668633766,-500.0,9.033e-05,2]
[351622931,1738668633775,-500.0,9.033e-05,2]
[351622932,1738668633784,-500.0,9.033e-05,2]
[351622933,1738668633794,-410.20533,9.033e-05,2]
[351622934,1738668633804,-500.0,9.033e-05,2]
[351622935,1738668633813,-500.0,9.033e-05,2]
[351622936,1738668633823,-500.0,9.033e-05,2]
[351622937,1738668633832,-154.401312,9.033e-05,2]
[351622938,1738668633842,-500.0,9.033e-05,2]
[351622939,1738668633852,-287.13036333,9.033e-05,2]
[351622940,1738668633862,-500.0,9.033e-05,2]
[351622941,1738668633871,-500.0,9.033e-05,2]
[351622942,1738668633880,-500.0,9.033e-05,2]
[351622943,1738668633890,-500.0,9.033e-05,2]
[351622944,1738668633899,-500.0,9.033e-05,2]
[351622945,1738668633909,-500.0,9.033e-05,2]
[351622946,1738668633919,-500.0,9.033e-05,2]
[351622947,1738668633929,-500.0,9.033e-05,2]
[351622948,1738668633939,-500.0,9.033e-05,2]
[351622949,1738668633948,-500.0,9.033e-05,2]
[351622950,1738668633962,-512.08,9.033e-05,2]
[351622951,1738668633973,-500.0,9.033e-05,2]
[351622952,1738668633983,-500.0,9.033e-05,2]
[351622953,1738668633992,-500.0,9.033e-05,2]
[351622954,1738668634003,-515.9,9.033e-05,2]
[351622955,1738668634013,-500.0,9.033e-05,2]
[351622956,1738668634023,-500.0,9.033e-05,2]
[351622957,1738668634032,-500.0,9.033e-05,2]
[351622958,1738668634043,-500.0,9.033e-05,2]
[351622959,1738668634053,-500.0,9.033e-05,2]
[351622960,1738668634063,-500.0,9.033e-05,2]
[351622961,1738668634073,-500.23815521,9.033e-05,2]
[351622962,1738668634082,-500.0,9.033e-05,2]
[351622963,1738668634091,-500.0,9.033e-05,2]
[351622964,1738668634101,-500.0,9.033e-05,2]
[351622965,1738668634110,-500.0,9.033e-05,2]
[351622966,1738668634119,-500.0,9.033e-05,2]
[351622967,1738668634130,-573.14,9.033e-05,2]
[351622968,1738668634139,-500.0,9.033e-05,2]
[351622969,1738668634149,-500.0,9.033e-05,2]
[351622970,1738668634158,-500.0,9.033e-05,2]
[351622971,1738668634169,-500.0,9.033e-05,2]
[351622972,1738668634179,-500.0,9.033e-05,2]
[351622973,1738668634189,-500.0,9.033e-05,2]
[351622974,1738668634199,-500.0,9.033e-05,2]
[351622975,1738668634209,-500.0,9.033e-05,2]
[351622976,1738668634219,-500.0,9.033e-05,2]
[351622977,1738668634229,-162.56359803,9.033e-05,2]
[351622978,1738668634238,-500.0,9.033e-05,2]
[351622979,1738668634248,-500.0,9.033e-05,2]
[351622980,1738668634258,-500.0,9.033e-05,2]
[351622981,1738668634268,-500.0,9.033e-05,2]
[351622982,1738668634278,-500.0,9.033e-05,2]
[351622983,1738668634287,-500.0,9.033e-05,2]
[351622984,1738668634297,-629.28,9.033e-05,2]
[351622985,1738668634308,-500.0,9.033e-05,2]
[351622986,1738668634317,-680.57,9.033e-05,2]
[351622987,1738668634327,-500.0,9.033e-05,2]
[351622988,1738668634337,-500.0,9.033e-05,2]
[351622989,1738668634347,-500.0,9.033e-05,2]
[351622990,1738668634356,-500.0,9.033e-05,2]
[351622991,1738668634366,-585.37,9.033e-05,2]
[351622992,1738668634375,-842.21,9.033e-05,2]
[351622993,1738668634385,-500.0,9.033e-05,2]
[351622994,1738668634395,-504.15,9.033e-05,2]
[351622995,1738668634405,-500.0,9.033e-05,2]
[351622996,1738668634416,-559.74,9.033e-05,2]
[351622997,1738668634426,-500.0,9.033e-05,2]
[351622998,1738668634436,-573.03,9.033e-05,2]
[351622999,1738668634446,-500.0,9.033e-05,2]
[351623000,1738668634456,-500.0,9.033e-05,2]
[351623001,1738668634466,-692.55,9.033e-05,2]
[351623002,1738668634477,-500.0,9.033e-05,2]
[351623003,1738668634487,-798.69,9.033e-05,2]
[351623004,1738668634497,-500.0,9.033e-05,2]
[351623005,1738668634506,-500.0,9.033e-05,2]
[351623006,1738668634516,-703.64,9.033e-05,2]
[351623007,1738668634525,-500.0,9.033e-05,2]
[351623008,1738668634535,-519.27,9.033e-05,2]
[351623009,1738668634545,-500.0,9.033e-05,2]
[351623010,1738668634555,-500.0,9.033e-05,2]
[351623011,1738668634564,-1114.61,9.033e-05,2]
[351623012,1738668634574,-500.0,9.033e-05,2]
[351623013,1738668634583,-500.0,9.033e-05,2]
[351623014,1738668634593,-656.44,9.033e-05,2]
[351623015,1738668634603,-774.92,9.033e-05,2]
[351623016,1738668634613,-500.0,9.033e-05,2]
[351623017,1738668634623,-874.57,9.033e-05,2]
[351623018,1738668634632,-500.0,9.033e-05,2]
[351623019,1738668634641,-637.69,9.033e-05,2]
[351623020,1738668634651,-500.0,9.033e-05,2]
[351623021,1738668634661,-530.24,9.033e-05,2]
[351623022,1738668634673,-744.95,9.033e-05,2]
[351623023,1738668634683,-1065.85,9.033e-05,2]
[351623024,1738668634692,-500.0,9.033e-05,2]
[351623025,1738668634702,-500.0,9.033e-05,2]
[351623026,1738668634712,-500.0,9.033e-05,2]
[351623027,1738668634722,-526.76,9.033e-05,2]
[351623028,1738668634732,-500.0,9.033e-05,2]
[351623029,1738668634742,-500.0,9.033e-05,2]
[351623030,1738668634751,-533.24,9.033e-05,2]
[351623031,1738668634760,-672.7,9.033e-05,2]
[351623032,1738668634770,-898.1,9.033e-05,2]
[351623033,1738668634780,-686.79,9.033e-05,2]
[351623034,1738668634790,-879.9,9.033e-05,2]
[351623035,1738668634801,-1015.43,9.033e-05,2]
[351623036,1738668634811,-842.24,9.033e-05,2]
[351623037,1738668634820,-555.27,9.033e-05,2]
[351623038,1738668634830,-500.0,9.033e-05,2]
[351623039,1738668634839,-2241.63,9.033e-05,2]
[351623040,1738668634849,-500.0,9.033e-05,2]
[351623041,1738668634859,-500.0,9.033e-05,2]
[351623042,1738668634870,-500.0,9.033e-05,2]
[351623043,1738668634880,-775.74,9.033e-05,2]
[351623044,1738668634889,-500.0,9.033e-05,2]
[351623045,1738668634901,-1580.1,9.033e-05,2]
[351623046,1738668634911,-794.25,9.033e-05,2]
[351623047,1738668634923,-1132.83,9.033e-05,2]
[351623048,1738668634934,-644.91,9.033e-05,2]
[351623049,1738668634944,-1003.31,9.033e-05,2]
[351623050,1738668634955,-1031.13,9.033e-05,2]
[351623051,1738668634970,-674.52,9.033e-05,2]
[351623052,1738668634981,-950.47,9.033e-05,2]
[351623053,1738668634992,-500.0,9.033e-05,2]
[351623054,1738668635003,-1052.45,9.033e-05,2]
[351623055,1738668635013,-500.0,9.033e-05,2]
[351623056,1738668635024,-747.06,9.033e-05,2]
[351623057,1738668635034,-568.28,9.033e-05,2]
[351623058,1738668635045,-500.0,9.033e-05,2]
[351623059,1738668635055,-500.0,9.033e-05,2]
[351623060,1738668635067,-1486.24,9.033e-05,2]
[351623061,1738668635077,-500.0,9.033e-05,2]
[351623062,1738668635087,-525.25,9.033e-05,2]
[351623063,1738668635097,-1154.96,9.033e-05,2]
[351623064,1738668635106,-500.0,9.033e-05,2]
[351623065,1738668635116,-763.19,9.033e-05,2]
[351623066,1738668635126,-500.0,9.033e-05,2]
[351623068,1738668635136,-500.0,9.033e-05,2]
[351623069,1738668635146,-990.68,9.033e-05,2]
[351623070,1738668635156,-630.8,9.033e-05,2]
[351623071,1738668635166,-843.93,9.033e-05,2]
[351623072,1738668635176,-500.0,9.033e-05,2]
[351623073,1738668635185,-622.66,9.033e-05,2]
[351623074,1738668635194,-500.0,9.033e-05,2]
[351623075,1738668635204,-756.2,9.033e-05,2]
[351623076,1738668635213,-597.75,9.033e-05,2]
[351623077,1738668635222,-988.0,9.033e-05,2]
[351623078,1738668635231,-500.0,9.033e-05,2]
[351623079,1738668635241,-500.0,9.033e-05,2]
[351623081,1738668635250,-594.03,9.033e-05,2]
[351623083,1738668635260,-657.74,9.033e-05,2]
[351623085,1738668635270,-500.0,9.033e-05,2]
[351623087,1738668635279,-500.0,9.033e-05,2]
[351623088,1738668635288,-500.0,9.033e-05,2]
[351623089,1738668635299,-661.28,9.033e-05,2]
[351623090,1738668635308,-558.24,9.033e-05,2]
[351623091,1738668635318,-743.93,9.033e-05,2]
[351623092,1738668635328,-757.05,9.033e-05,2]
[351623093,1738668635338,-500.0,9.033e-05,2]
[351623094,1738668635348,-959.51,9.033e-05,2]
[351623095,1738668635357,-500.0,9.033e-05,2]
[351623096,1738668635367,-539.88,9.033e-05,2]
[351623097,1738668635376,-574.52,9.033e-05,2]
[351623098,1738668635386,-500.0,9.033e-05,2]
[351623099,1738668635396,-676.14,9.033e-05,2]
[351623100,1738668635405,-500.0,9.033e-05,2]
[351623101,1738668635414,-500.0,9.033e-05,2]
[351623102,1738668635423,-1152.34,9.033e-05,2]
[351623103,1738668635432,-500.0,9.033e-05,2]
[351623104,1738668635442,-500.0,9.033e-05,2]
[351623105,1738668635452,-500.0,9.033e-05,2]
[351623106,1738668635461,-591.97,9.033e-05,2]
[351623107,1738668635470,-500.0,9.033e-05,2]
[351623108,1738668635479,-500.0,9.033e-05,2]
[351623109,1738668635489,-500.0,9.033e-05,2]
[351623110,1738668635498,-563.64,9.033e-05,2]
[351623111,1738668635507,-500.0,9.033e-05,2]
[351623112,1738668635516,-501.42,9.033e-05,2]
[351623113,1738668635526,-1741.61,9.033e-05,2]
[351623114,1738668635535,-500.0,9.033e-05,2]
[351623115,1738668635546,-599.69,9.033e-05,2]
[351623116,1738668635555,-500.0,9.033e-05,2]
[351623117,1738668635564,-500.0,9.033e-05,2]
[351623118,1738668635573,-500.0,9.033e-05,2]
[351623119,1738668635583,-980.29,9.033e-05,2]
[351623120,1738668635592,-505.81166266,9.033e-05,2]
[351623121,1738668635602,-500.0,9.033e-05,2]
[351623122,1738668635611,-581.03,9.033e-05,2]
[351623123,1738668635621,-500.0,9.033e-05,2]
[351623124,1738668635630,-570.36,9.033e-05,2]
[351623125,1738668635639,-500.0,9.034e-05,2]
[351623126,1738668635649,-500.0,9.034e-05,2]
[351623127,1738668635658,-500.0,9.034e-05,2]
[351623128,1738668635669,-500.0,9.034e-05,2]
[351623129,1738668635678,-500.0,9.034e-05,2]
[351623130,1738668635687,-500.0,9.034e-05,2]
[351623131,1738668635696,-500.0,9.034e-05,2]
[351623132,1738668635706,-500.0,9.034e-05,2]
[351623133,1738668635715,-500.0,9.034e-05,2]
[351623134,1738668635725,-500.0,9.034e-05,2]
[351623135,1738668635734,-500.0,9.034e-05,2]
[351623136,1738668635743,-500.0,9.034e-05,2]
[351623137,1738668635752,-500.0,9.034e-05,2]
[351623138,1738668635761,-500.0,9.034e-05,2]
[351623139,1738668635770,-500.0,9.034e-05,2]
[351623140,1738668635780,-500.0,9.034e-05,2]
[351623141,1738668635789,-500.0,9.034e-05,2]
[351623142,1738668635799,-500.0,9.034e-05,2]
[351623143,1738668635808,-500.0,9.034e-05,2]
[351623144,1738668635819,-500.0,9.034e-05,2]
[351623145,1738668635829,-500.0,9.034e-05,2]
[351623146,1738668635839,-500.0,9.034e-05,2]
[351623147,1738668635848,-500.0,9.034e-05,2]
[351623148,1738668635858,-500.0,9.034e-05,2]
[351623149,1738668635868,-500.0,9.034e-05,2]
[351623150,1738668635877,-500.0,9.034e-05,2]
[351623151,1738668635887,-1036.12,9.034e-05,2]
[351623152,1738668635897,-646.32,9.034e-05,2]
[351623153,1738668635907,-439.17761023,9.034e-05,2]
[351623154,1738668635918,-500.0,9.034e-05,2]
[351623155,1738668635928,-680.94,9.034e-05,2]
[351623156,1738668635938,-500.0,9.034e-05,2]
[351623157,1738668635948,-500.0,9.034e-05,2]
[351623158,1738668635963,-500.0,9.034e-05,2]
[351623159,1738668635972,-592.48,9.034e-05,2]
[351623160,1738668635982,-500.0,9.034e-05,2]
[351623161,1738668635991,-500.0,9.034e-05,2]
[351623162,1738668636002,-500.0,9.034e-05,2]
[351623163,1738668636012,-500.0,9.034e-05,2]
[351623164,1738668636022,-500.0,9.034e-05,2]
[351623165,1738668636033,-500.0,9.034e-05,2]
[351623166,1738668636043,-500.0,9.034e-05,2]
[351623167,1738668636053,-500.0,9.034e-05,2]
[351623168,1738668636062,-500.0,9.034e-05,2]
[351623169,1738668636071,-500.0,9.034e-05,2]
[351623170,1738668636081,-500.0,9.034e-05,2]
[351623171,1738668636091,-511.56,9.034e-05,2]
[351623172,1738668636100,-500.0,9.034e-05,2]
[351623173,1738668636110,-709.22,9.034e-05,2]
[351623174,1738668636119,-500.0,9.034e-05,2]
[351623175,1738668636129,-500.0,9.034e-05,2]
[351623176,1738668636139,-500.0,9.034e-05,2]
[351623177,1738668636148,-500.0,9.034e-05,2]
[351623178,1738668636159,-500.0,9.034e-05,2]
[351623179,1738668636169,-500.0,9.034e-05,2]
[351623180,1738668636178,-504.46,9.034e-05,2]
[351623181,1738668636187,-500.0,9.034e-05,2]
[351623182,1738668636197,-500.0,9.034e-05,2]
[351623183,1738668636206,-500.0,9.034e-05,2]
[351623184,1738668636216,-500.0,9.034e-05,2]
[351623185,1738668636226,-355.74,9.035e-05,2]
[351623186,1738668636236,-500.0,9.035e-05,2]
[351623187,1738668636245,-158.49,9.035e-05,2]
[351623188,1738668636255,-337.45,9.035e-05,2]
[351623189,1738668636265,-497.3,9.035e-05,2]
[351623190,1738668636274,-500.0,9.035e-05,2]
[351623191,1738668636283,-500.0,9.035e-05,2]
[351623192,1738668636292,-500.0,9.035e-05,2]
[351623193,1738668636302,-500.0,9.035e-05,2]
[351623194,1738668636311,-242.13,9.035e-05,2]
[351623195,1738668636320,-500.0,9.035e-05,2]
[351623196,1738668636330,-150.0,9.041e-05,2]
[351623197,1738668636340,-774.73,9.123e-05,2]
[351623198,1738668636350,-774.73,9.123e-05,2]
[351623199,1738668636359,-508.1,9.123e-05,2]
[351623200,1738668636368,-1289.089,9.14e-05,2]
[351623201,1738668636378,-480.549,9.14e-05,2]
[351623202,1738668636387,-1237.598,9.14e-05,2]
[351623203,1738668636397,-2953.0,9.14e-05,2]
[351623204,1738668636406,-764.099,9.14e-05,2]
[351623205,1738668636418,-539.0,9.14e-05,2]
[351623206,1738668636427,-1324.0,9.14e-05,2]
[351623207,1738668636437,-151.0,9.14e-05,2]
[351623208,1738668636446,-2023.0,9.14e-05,2]
[351623209,1738668636455,-1272.0,9.14e-05,2]
[351623210,1738668636464,-150.0,9.14e-05,2]
[351623211,1738668636473,-1000.0,9.156e-05,4]
[351623212,1738668636483,-643.79243659,9.169e-05,2]
[351623213,1738668636492,-500.0,9.17e-05,2]
[351623214,1738668636501,-500.0,9.17e-05,2]
[351623215,1738668636509,-500.0,9.17e-05,2]
[351623216,1738668636518,-500.0,9.17e-05,2]
[351623217,1738668636527,-500.0,9.17e-05,2]
[351623218,1738668636537,-500.0,9.17e-05,2]
[351623219,1738668636546,-500.0,9.17e-05,2]
[351623220,1738668636555,-523.2,9.17e-05,2]
[351623221,1738668636564,-500.0,9.17e-05,2]
[351623222,1738668636573,-500.0,9.17e-05,2]
[351623223,1738668636582,-500.0,9.17e-05,2]
[351623224,1738668636591,-500.0,9.17e-05,2]
[351623225,1738668636600,-500.0,9.17e-05,2]
[351623226,1738668636609,-500.0,9.17e-05,2]
[351623227,1738668636619,-500.0,9.17e-05,2]
[351623228,1738668636628,-500.0,9.17e-05,2]
[351623229,1738668636638,-500.0,9.17e-05,2]
[351623230,1738668636647,-500.0,9.17e-05,2]
[351623231,1738668636657,-502.913569,9.17e-05,2]
[351623232,1738668636667,-500.0,9.17e-05,2]
[351623233,1738668636677,-500.0,9.17e-05,2]
[351623234,1738668636686,-500.0,9.17e-05,2]
[351623235,1738668636695,-500.0,9.17e-05,2]
[351623236,1738668636704,-500.0,9.17e-05,2]
[351623237,1738668636714,-500.0,9.17e-05,2]
[351623238,1738668636723,-500.0,9.17e-05,2]
[351623239,1738668636732,-500.0,9.17e-05,2]
[351623240,1738668636741,-500.0,9.17e-05,2]
[351623241,1738668636750,-500.0,9.17e-05,2]
[351623242,1738668636760,-500.0,9.17e-05,2]
[351623243,1738668636769,-500.0,9.17e-05,2]
[351623244,1738668636778,-500.0,9.17e-05,2]
[351623245,1738668636787,-500.0,9.17e-05,2]
[351623246,1738668636796,-500.0,9.17e-05,2]
[351623247,1738668636805,-500.0,9.17e-05,2]
[351623248,1738668636815,-500.0,9.17e-05,2]
[351623249,1738668636826,-500.0,9.17e-05,2]
[351623250,1738668636838,-500.0,9.17e-05,2]
[351623251,1738668636850,-500.0,9.17e-05,2]
[351623252,1738668636863,-500.0,9.17e-05,2]
[351623253,1738668636875,-500.0,9.17e-05,2]
[351623254,1738668636887,-525.47149951,9.17e-05,2]
[351623255,1738668636897,-500.0,9.17e-05,2]
[351623256,1738668636907,-500.0,9.17e-05,2]
[351623257,1738668636919,-500.0,9.17e-05,2]
[351623258,1738668636931,-500.0,9.17e-05,2]
[351623259,1738668636943,-500.0,9.17e-05,2]
[351623260,1738668636956,-500.0,9.17e-05,2]
[351623261,1738668636970,-500.0,9.17e-05,2]
[351623262,1738668636981,-500.0,9.17e-05,2]
[351623263,1738668636993,-503.41012155,9.17e-05,2]
[351623264,1738668637006,-500.0,9.17e-05,2]
[351623265,1738668637018,-618.69201453,9.17e-05,2]
[351623266,1738668637029,-500.0,9.17e-05,2]
[351623267,1738668637042,-500.0,9.17e-05,2]
[351623268,1738668637053,-500.0,9.17e-05,2]
[351623269,1738668637064,-500.0,9.17e-05,2]
[351623270,1738668637075,-500.0,9.17e-05,2]
[351623271,1738668637086,-510.0921703,9.17e-05,2]
[351623272,1738668637096,-500.0,9.17e-05,2]
[351623273,1738668637105,-500.0,9.17e-05,2]
[351623274,1738668637118,-501.99981177,9.17e-05,2]
[351623275,1738668637129,-519.85,9.17e-05,2]
[351623276,1738668637140,-500.0,9.17e-05,2]
[351623277,1738668637151,-500.0,9.17e-05,2]
[351623278,1738668637163,-500.0,9.17e-05,2]
[351623279,1738668637177,-500.0,9.17e-05,2]
[351623280,1738668637187,-500.0,9.17e-05,2]
[351623281,1738668637200,-500.0,9.17e-05,2]